fUST/lending_fUST_20251212
["ID","MTS","AMOUNT","RATE_DAILY","PERIOD"]
[398261917,1765473106925,-3449.92,0.00015342,2]
[398261918,1765473106934,-500.0,0.00015342,2]
[398261919,1765473106944,-500.0,0.00015342,2]
[398261920,1765473106954,-1798.0,0.00015342,2]
[398261921,1765473106963,-4118.34,0.00015342,2]
[398261922,1765473106973,-830.5,0.00015342,2]
[398261923,1765473106990,-500.0,0.00015342,2]
[398261924,1765473107000,-910.39,0.00015342,2]
[398261925,1765473107010,-500.0,0.00015342,2]
[398261926,1765473107020,-15811.29,0.00015342,2]
[398261927,1765473107031,-500.0,0.00015342,2]
[398261928,1765473107041,-862.37,0.00015342,2]
[398261929,1765473107051,-602.31,0.00015342,2]
[398261930,1765473107063,-525.88,0.00015342,2]
[398261931,1765473107072,-500.0,0.00015342,2]
[398261932,1765473107082,-788.03,0.00015342,2]
[398261933,1765473107091,-2726.54,0.00015342,2]
[398261934,1765473107101,-500.0,0.00015342,2]
[398261935,1765473107110,-500.0,0.00015342,2]
[398261936,1765473107119,-500.0,0.00015342,2]
[398261937,1765473107129,-1792.08,0.00015342,2]
[398261938,1765473107139,-500.0,0.00015342,2]
[398261939,1765473107148,-500.0,0.00015342,2]
[398261940,1765473107158,-500.0,0.00015342,2]
[398261941,1765473107167,-648.27,0.00015342,2]
[398261942,1765473107176,-1464.86,0.00015342,2]
[398261943,1765473107186,-500.0,0.00015342,2]
[398261944,1765473107195,-669.48,0.00015342,2]
[398261945,1765473107205,-2489.03,0.00015342,2]
[398261946,1765473107214,-500.0,0.00015342,2]
[398261947,1765473107224,-500.0,0.00015342,2]
[398261948,1765473107234,-979.89,0.00015342,2]
[398261949,1765473107243,-2319.1,0.00015342,2]
[398261950,1765473107253,-8021.34,0.00015342,2]
[398261951,1765473107262,-1059.6,0.00015342,2]
[398261952,1765473107272,-748.3,0.00015342,2]
[398261953,1765473107281,-500.0,0.00015342,2]
[398261954,1765473107290,-500.0,0.00015342,2]
[398261955,1765473107300,-521.79,0.00015342,2]
[398261956,1765473107309,-758.49,0.00015342,2]
[398261957,1765473107318,-500.0,0.00015342,2]
[398261958,1765473107328,-500.0,0.00015342,2]
[398261959,1765473107338,-3194.33,0.00015342,2]
[398261960,1765473107348,-1602.59,0.00015342,2]
[398261961,1765473107358,-526.42,0.00015342,2]
[398261962,1765473107367,-1033.03,0.00015342,2]
[398261963,1765473107377,-500.0,0.00015342,2]
[398261964,1765473107387,-500.0,0.00015342,2]
[398261965,1765473107397,-1427.04,0.00015342,2]
[398261966,1765473107407,-1182.82,0.00015342,2]
[398261967,1765473107417,-500.0,0.00015342,2]
[398261968,1765473107427,-503.81,0.00015342,2]
[398261969,1765473107437,-2357.55,0.00015342,2]
[398261970,1765473107447,-2241.56,0.00015342,2]
[398261971,1765473107456,-500.0,0.00015342,2]
[398261972,1765473107466,-746.51,0.00015342,2]
[398261973,1765473107476,-502.94,0.00015342,2]
[398261974,1765473107485,-2477.03,0.00015342,2]
[398261975,1765473107495,-16159.61,0.00015342,2]
[398261976,1765473107504,-500.0,0.00015342,2]
[398261977,1765473107514,-1020.46,0.00015342,2]
[398261978,1765473107523,-500.0,0.00015342,2]
[398261979,1765473107533,-500.0,0.00015342,2]
[398261980,1765473107543,-929.81,0.00015342,2]
[398261981,1765473107553,-9833.23,0.00015342,2]
[398261982,1765473107563,-1802.15,0.00015342,2]
[398261983,1765473107572,-6470.75,0.00015342,2]
[398261984,1765473107581,-946.88,0.00015342,2]
[398261985,1765473107591,-997.71,0.00015342,2]
[398261986,1765473107601,-500.0,0.00015342,2]
[398261987,1765473107610,-500.0,0.00015342,2]
[398261988,1765473107619,-549.24036532,0.00015342,2]
[398261989,1765473107629,-500.0,0.00015342,2]
[398261990,1765473107638,-975.53,0.00015342,2]
[398261991,1765473107647,-711.68,0.00015342,2]
[398261992,1765473107657,-500.0,0.00015342,2]
[398261993,1765473107666,-2355.47,0.00015342,2]
[398261994,1765473107675,-6461.74,0.00015342,2]
[398261995,1765473107684,-500.0,0.00015342,2]
[398261996,1765473107695,-705.81,0.00015342,2]
[398261997,1765473107707,-1840.07,0.00015342,2]
[398261998,1765473107716,-1427.0,0.00015342,2]
[398261999,1765473107726,-3038.1,0.00015342,2]
[398262000,1765473107737,-500.0,0.00015342,2]
[398262001,1765473107751,-3082.36,0.00015342,2]
[398262002,1765473107761,-1002.42,0.00015342,2]
[398262003,1765473107770,-500.0,0.00015342,2]
[398262004,1765473107780,-500.0,0.00015342,2]
[398262005,1765473107790,-500.0,0.00015342,2]
[398262006,1765473107800,-2274.69,0.00015342,2]
[398262007,1765473107810,-500.0,0.00015342,2]
[398262008,1765473107819,-2058.31,0.00015342,2]
[398262009,1765473107829,-500.0,0.00015342,2]
[398262010,1765473107839,-543.43,0.00015342,2]
[398262011,1765473107848,-2874.84,0.00015342,2]
[398262012,1765473107859,-3909.79,0.00015342,2]
[398262013,1765473107872,-1626.08,0.00015342,2]
[398262014,1765473107884,-1213.67,0.00015342,2]
[398262015,1765473107894,-500.0,0.00015342,2]
[398262016,1765473107903,-1495.1,0.00015342,2]
[398262017,1765473107913,-2147.35,0.00015342,2]
[398262018,1765473107922,-2767.88,0.00015342,2]
[398262019,1765473107932,-9868.9,0.00015342,2]
[398262020,1765473107941,-737.71,0.00015342,2]
[398262021,1765473107951,-2466.81,0.00015342,2]
[398262022,1765473107960,-2201.84,0.00015342,2]
[398262023,1765473107969,-508.55,0.00015342,2]
[398262024,1765473107980,-500.0,0.00015342,2]
[398262025,1765473107991,-642.28,0.00015342,2]
[398262026,1765473108000,-1593.22,0.00015342,2]
[398262027,1765473108010,-868.4,0.00015342,2]
[398262028,1765473108019,-500.0,0.00015342,2]
[398262029,1765473108030,-513.64,0.00015342,2]
[398262030,1765473108039,-1703.23,0.00015342,2]
[398262031,1765473108049,-500.0,0.00015342,2]
[398262032,1765473108060,-598.2,0.00015342,2]
[398262033,1765473108070,-3702.43,0.00015342,2]
[398262034,1765473108079,-3797.02,0.00015342,2]
[398262035,1765473108089,-1310.35,0.00015342,2]
[398262036,1765473108099,-500.0,0.00015342,2]
[398262037,1765473108109,-500.0,0.00015342,2]
[398262038,1765473108118,-181.27218255,0.00015342,2]
[398262039,1765473108128,-1964.83,0.00015342,2]
[398262040,1765473108138,-1191.2,0.00015342,2]
[398262041,1765473108147,-2176.01,0.00015342,2]
[398262042,1765473108157,-1848.59,0.00015342,2]
[398262043,1765473108166,-3062.71,0.00015342,2]
[398262044,1765473108175,-2486.75,0.00015342,2]
[398262045,1765473108184,-1358.97,0.00015342,2]
[398262046,1765473108193,-1663.27,0.00015342,2]
[398262047,1765473108202,-500.0,0.00015342,2]
[398262048,1765473108211,-1044.05,0.00015342,2]
[398262049,1765473108221,-2993.28,0.00015342,2]
[398262050,1765473108230,-645.89,0.00015342,2]
[398262051,1765473108239,-900.08,0.00015342,2]
[398262052,1765473108248,-546.01,0.00015342,2]
[398262053,1765473108258,-500.0,0.00015342,2]
[398262054,1765473108267,-40715.35,0.00015342,2]
[398262055,1765473108277,-500.0,0.00015342,2]
[398262056,1765473108286,-3514.28,0.00015342,2]
[398262057,1765473108295,-1320.84,0.00015342,2]
[398262058,1765473108305,-1458.76,0.00015342,2]
[398262059,1765473108314,-1549.69,0.00015342,2]
[398262060,1765473108324,-500.0,0.00015342,2]
[398262061,1765473108333,-7942.46,0.00015342,2]
[398262062,1765473108342,-3763.94,0.00015342,2]
[398262063,1765473108351,-10354.69,0.00015342,2]
[398262064,1765473108361,-937.22,0.00015342,2]
[398262065,1765473108371,-500.0,0.00015342,2]
[398262066,1765473108380,-500.0,0.00015342,2]
[398262067,1765473108390,-9226.2,0.00015342,2]
[398262068,1765473108399,-783.44,0.00015342,2]
[398262069,1765473108409,-500.0,0.00015342,2]
[398262070,1765473108419,-500.0,0.00015342,2]
[398262071,1765473108428,-2000.0,0.00015342,2]
[398262072,1765473108439,-360.0,0.00015396,2]
[398262073,1765473108449,-640.24385345,0.00015412,2]
[398262074,1765473108459,-283.24,0.00015451,2]
[398262075,1765473108468,-2500.0,0.00015464,2]
[398262076,1765473108477,-500.0,0.00015505,2]
[398262077,1765473108487,-1608.54,0.00015616,2]
[398262078,1765473108496,-2302.959549,0.00015616,2]
[398262079,1765473108505,-500.0,0.00015616,2]
[398262080,1765473108515,-500.0,0.00015616,2]
[398262081,1765473108525,-935.65,0.00015616,2]
[398262082,1765473108535,-500.0,0.00015616,2]
[398262083,1765473108543,-733.38,0.00015616,2]
[398262084,1765473108553,-500.0,0.00015616,2]
[398262085,1765473108562,-500.0,0.00015616,2]
[398262086,1765473108571,-1097.28,0.00015616,2]
[398262087,1765473108581,-500.0,0.00015616,2]
[398262088,1765473108591,-878.81,0.00015616,2]
[398262089,1765473108601,-1446.65,0.00015616,2]
[398262090,1765473108610,-500.0,0.00015616,2]
[398262091,1765473108619,-724.0,0.00015616,2]
[398262092,1765473108628,-672.09,0.00015616,2]
[398262093,1765473108637,-540.2,0.00015616,2]
[398262094,1765473108646,-1325.77,0.00015616,2]
[398262095,1765473108656,-500.0,0.00015616,2]
[398262096,1765473108666,-500.0,0.00015616,2]
[398262097,1765473108675,-921.35,0.00015616,2]
[398262098,1765473108684,-790.82,0.00015616,2]
[398262099,1765473108695,-1499.79,0.00015616,2]
[398262100,1765473108704,-500.0,0.00015616,2]
[398262101,1765473108715,-740.19,0.00015616,2]
[398262102,1765473108725,-583.67,0.00015616,2]
[398262103,1765473108734,-505.17282005,0.00015616,2]
[398262104,1765473108743,-933.59,0.00015616,2]
[398262105,1765473108752,-1548.83,0.00015616,2]
[398262106,1765473108762,-647.22,0.00015616,2]
[398262107,1765473108772,-942.57,0.00015616,2]
[398262108,1765473108781,-500.0,0.00015616,2]
[398262109,1765473108791,-500.0,0.00015616,2]
[398262110,1765473108800,-2824.48,0.00015616,2]
[398262111,1765473108809,-845.83,0.00015616,2]
[398262112,1765473108819,-500.0,0.00015616,2]
[398262113,1765473108828,-500.0,0.00015616,2]
[398262114,1765473108837,-1883.8,0.00015616,2]
[398262115,1765473108846,-542.07,0.00015616,2]
[398262116,1765473108858,-500.0,0.00015616,2]
[398262117,1765473108867,-500.0,0.00015616,2]
[398262118,1765473108877,-626.92,0.00015616,2]
[398262119,1765473108886,-1839.54,0.00015616,2]
[398262120,1765473108895,-500.0,0.00015616,2]
[398262121,1765473108904,-2829.3,0.00015616,2]
[398262122,1765473108913,-512.17,0.00015616,2]
[398262123,1765473108922,-500.0,0.00015616,2]
[398262124,1765473108931,-700.08,0.00015616,2]
[398262125,1765473108940,-566.46,0.00015616,2]
[398262126,1765473108949,-217.62055285,0.00015616,2]
[398262127,1765473108958,-500.0,0.00015616,2]
[398262128,1765473108967,-1148.61,0.00015616,2]
[398262129,1765473108977,-863.88,0.00015616,2]
[398262130,1765473108990,-500.0,0.00015616,2]
[398262131,1765473108999,-1156.91,0.00015616,2]
[398262132,1765473109008,-500.0,0.00015616,2]
[398262133,1765473109018,-661.38,0.00015616,2]
[398262134,1765473109029,-500.0,0.00015616,2]
[398262135,1765473109039,-676.34,0.00015616,2]
[398262136,1765473109049,-951.19,0.00015616,2]
[398262137,1765473109060,-500.0,0.00015616,2]
[398262138,1765473109069,-535.40912237,0.00015616,2]
[398262139,1765473109078,-696.06,0.00015616,2]
[398262140,1765473109088,-1268.0,0.00015616,2]
[398262141,1765473109098,-532.67,0.00015616,2]
[398262142,1765473109107,-1479.61,0.00015616,2]
[398262143,1765473109116,-1666.57,0.00015616,2]
[398262144,1765473109126,-664.88,0.00015616,2]
[398262145,1765473109135,-571.38,0.00015616,2]
[398262146,1765473109144,-500.0,0.00015616,2]
[398262147,1765473109155,-500.0,0.00015616,2]
[398262148,1765473109164,-500.0,0.00015616,2]
[398262149,1765473109174,-500.0,0.00015616,2]
[398262150,1765473109184,-920.86,0.00015616,2]
[398262151,1765473109193,-500.0,0.00015616,2]
[398262152,1765473109202,-1042.86,0.00015616,2]
[398262153,1765473109212,-500.0,0.00015616,2]
[398262154,1765473109221,-500.0,0.00015616,2]
[398262155,1765473109231,-1029.97,0.00015616,2]
[398262156,1765473109240,-490.12632692,0.00015616,2]
[398262157,1765473109250,-500.0,0.00015616,2]
[398262158,1765473109259,-500.0,0.00015616,2]
[398262159,1765473109268,-1041.62,0.00015616,2]
[398262160,1765473109278,-500.0,0.00015616,2]
[398262161,1765473109289,-1387.16,0.00015616,2]
[398262162,1765473109299,-599.12,0.00015616,2]
[398262163,1765473109309,-913.77,0.00015616,2]
[398262164,1765473109318,-678.15,0.00015616,2]
[398262165,1765473109328,-765.56,0.00015616,2]
[398262166,1765473109338,-873.29,0.00015616,2]
[398262167,1765473109348,-500.0,0.00015616,2]
[398262168,1765473109358,-500.0,0.00015616,2]
[398262169,1765473109368,-500.0,0.00015616,2]
[398262170,1765473109377,-1017.67,0.00015616,2]
[398262171,1765473109387,-829.65,0.00015616,2]
[398262172,1765473109396,-500.0,0.00015616,2]
[398262173,1765473109406,-500.0,0.00015616,2]
[398262174,1765473109415,-500.0,0.00015616,2]
[398262175,1765473109425,-1186.27,0.00015616,2]
[398262176,1765473109437,-1719.24,0.00015616,2]
[398262177,1765473109452,-576.64,0.00015616,2]
[398262178,1765473109462,-601.38306735,0.00015616,2]
[398262179,1765473109471,-500.0,0.00015616,2]
[398262180,1765473109480,-1255.04,0.00015616,2]
[398262181,1765473109490,-544.54043486,0.00015616,2]
[398262182,1765473109499,-500.0,0.00015616,2]
[398262183,1765473109508,-500.0,0.00015616,2]
[398262184,1765473109518,-500.0,0.00015616,2]
[398262185,1765473109528,-507.12907772,0.00015616,2]
[398262186,1765473109537,-1858.97,0.00015616,2]
[398262187,1765473109547,-692.35,0.00015616,2]
[398262188,1765473109556,-1482.69,0.00015616,2]
[398262189,1765473109565,-279.21702973,0.00015616,2]
[398262190,1765473109575,-500.0,0.00015616,2]
[398262191,1765473109585,-1716.66,0.00015616,2]
[398262192,1765473109595,-3325.19,0.00015616,2]
[398262193,1765473109604,-565.52,0.00015616,2]
[398262194,1765473109613,-724.84,0.00015616,2]
[398262195,1765473109623,-500.0,0.00015616,2]
[398262196,1765473109632,-859.19,0.00015616,2]
[398262197,1765473109642,-500.0,0.00015616,2]
[398262198,1765473109651,-520.73,0.00015616,2]
[398262199,1765473109660,-1859.85,0.00015616,2]
[398262200,1765473109669,-2447.95,0.00015616,2]
[398262201,1765473109854,-1258.13,0.00015616,2]
[398262202,1765473109864,-674.1,0.00015616,2]
[398262203,1765473109873,-745.61,0.00015616,2]
[398262204,1765473109884,-933.97,0.00015616,2]
[398262205,1765473109893,-665.21,0.00015616,2]
[398262206,1765473109903,-500.0,0.00015616,2]
[398262207,1765473109912,-500.0,0.00015616,2]
[398262208,1765473109921,-500.0,0.00015616,2]
[398262209,1765473109930,-617.92,0.00015616,2]
[398262210,1765473109939,-1369.84,0.00015616,2]
[398262211,1765473109949,-500.0,0.00015616,2]
[398262212,1765473109959,-500.0,0.00015616,2]
[398262213,1765473109968,-500.0,0.00015616,2]
[398262214,1765473109981,-500.0,0.00015616,2]
[398262215,1765473109991,-1527.37,0.00015616,2]
[398262216,1765473110000,-2464.33,0.00015616,2]
[398262217,1765473110010,-500.0,0.00015616,2]
[398262218,1765473110019,-858.6,0.00015616,2]
[398262219,1765473110030,-500.0,0.00015616,2]
[398262220,1765473110039,-500.0,0.00015616,2]
[398262221,1765473110049,-2247.37,0.00015616,2]
[398262222,1765473110059,-500.0,0.00015616,2]
[398262223,1765473110068,-1279.21,0.00015616,2]
[398262224,1765473110078,-1195.79,0.00015616,2]
[398262225,1765473110087,-500.0,0.00015616,2]
[398262226,1765473110097,-874.92,0.00015616,2]
[398262227,1765473110107,-257.64439986,0.00015616,2]
[398262228,1765473110116,-526.06,0.00015616,2]
[398262229,1765473110126,-505.47,0.00015616,2]
[398262230,1765473110136,-503.24733426,0.00015616,2]
[398262231,1765473110145,-700.69,0.00015616,2]
[398262232,1765473110155,-681.33,0.00015616,2]
[398262233,1765473110164,-500.0,0.00015616,2]
[398262234,1765473110174,-500.0,0.00015616,2]
[398262235,1765473110183,-500.0,0.00015616,2]
[398262236,1765473110193,-500.0,0.00015616,2]
[398262237,1765473110202,-701.01,0.00015616,2]
[398262238,1765473110212,-500.0,0.00015616,2]
[398262239,1765473110222,-1761.69,0.00015616,2]
[398262240,1765473110233,-1576.73,0.00015616,2]
[398262241,1765473110243,-668.75,0.00015616,2]
[398262242,1765473110253,-1411.4,0.00015616,2]
[398262243,1765473110263,-500.0,0.00015616,2]
[398262244,1765473110272,-7512.92,0.00015616,2]
[398262245,1765473110282,-500.0,0.00015616,2]
[398262246,1765473110291,-637.83,0.00015616,2]
[398262247,1765473110301,-500.0,0.00015616,2]
[398262248,1765473110310,-1296.47,0.00015616,2]
[398262249,1765473110320,-1688.98,0.00015616,2]
[398262250,1765473110330,-1630.81,0.00015616,2]
[398262251,1765473110340,-647.94,0.00015616,2]
[398262252,1765473110349,-230.80581905,0.00015616,2]
[398262253,1765473110359,-1041.06,0.00015616,2]
[398262254,1765473110369,-199.74520163,0.00015616,2]
[398262255,1765473110378,-500.0,0.00015616,2]
[398262256,1765473110388,-1080.19,0.00015616,2]
[398262257,1765473110397,-3732.69,0.00015616,2]
[398262258,1765473110407,-803.0,0.00015616,2]
[398262259,1765473110416,-500.0,0.00015616,2]
[398262260,1765473110426,-1453.87,0.00015616,2]
[398262261,1765473110436,-1663.21,0.00015616,2]
[398262262,1765473110446,-950.4,0.00015616,2]
[398262263,1765473110455,-500.0,0.00015616,2]
[398262264,1765473110465,-1287.46,0.00015616,2]
[398262265,1765473110474,-500.0,0.00015616,2]
[398262266,1765473110483,-1595.81,0.00015616,2]
[398262267,1765473110493,-536.67,0.00015616,2]
[398262268,1765473110502,-500.0,0.00015616,2]
[398262269,1765473110512,-1030.43,0.00015616,2]
[398262270,1765473110522,-947.41,0.00015616,2]
[398262271,1765473110532,-1145.0,0.00015616,2]
[398262272,1765473110542,-610.1,0.00015616,2]
[398262273,1765473110551,-500.0,0.00015616,2]
[398262274,1765473110561,-916.72,0.00015616,2]
[398262275,1765473110571,-947.38,0.00015616,2]
[398262276,1765473110581,-603.81,0.00015616,2]
[398262277,1765473110590,-1226.34,0.00015616,2]
[398262278,1765473110601,-1501.42,0.00015616,2]
[398262279,1765473110610,-500.0,0.00015616,2]
[398262280,1765473110620,-500.0,0.00015616,2]
[398262281,1765473110630,-500.0,0.00015616,2]
[398262282,1765473110639,-1113.97,0.00015616,2]
[398262283,1765473110649,-500.0,0.00015616,2]
[398262284,1765473110659,-817.06,0.00015616,2]
[398262285,1765473110670,-982.88,0.00015616,2]
[398262286,1765473110679,-603.27,0.00015616,2]
[398262287,1765473110689,-1222.38,0.00015616,2]
[398262288,1765473110698,-3340.02,0.00015616,2]
[398262289,1765473110707,-2222.37,0.00015616,2]
[398262290,1765473110717,-607.34243013,0.00015616,2]
[398262291,1765473110726,-1823.03,0.00015616,2]
[398262292,1765473110736,-740.93,0.00015616,2]
[398262293,1765473110745,-500.0,0.00015616,2]
[398262294,1765473110755,-500.0,0.00015616,2]
[398262295,1765473110764,-2279.37,0.00015616,2]
[398262296,1765473110773,-1319.35,0.00015616,2]
[398262297,1765473110783,-500.0,0.00015616,2]
[398262298,1765473110792,-572.55,0.00015616,2]
[398262299,1765473110802,-3595.68,0.00015616,2]
[398262300,1765473110812,-604.59,0.00015616,2]
[398262301,1765473110822,-635.56,0.00015616,2]
[398262302,1765473110831,-1128.13,0.00015616,2]
[398262303,1765473110841,-870.33,0.00015616,2]
[398262304,1765473110851,-1376.81,0.00015616,2]
[398262305,1765473110860,-500.0,0.00015616,2]
[398262306,1765473110870,-500.0,0.00015616,2]
[398262307,1765473110879,-1442.81,0.00015616,2]
[398262308,1765473110889,-500.0,0.00015616,2]
[398262309,1765473110899,-492.80723314,0.00015616,2]
[398262310,1765473110908,-1626.69,0.00015616,2]
[398262311,1765473110918,-2114.36,0.00015616,2]
[398262312,1765473110927,-1142.02,0.00015616,2]
[398262313,1765473110937,-1166.75,0.00015616,2]
[398262314,1765473110947,-1326.87,0.00015616,2]
[398262315,1765473110956,-1524.16,0.00015616,2]
[398262316,1765473110966,-847.25,0.00015616,2]
[398262317,1765473110977,-922.26,0.00015616,2]
[398262318,1765473110989,-820.02,0.00015616,2]
[398262319,1765473110999,-2189.83,0.00015616,2]
[398262320,1765473111008,-1088.15,0.00015616,2]
[398262321,1765473111019,-1543.6,0.00015616,2]
[398262322,1765473111028,-681.91,0.00015616,2]
[398262323,1765473111038,-255.18743163,0.00015616,2]
[398262324,1765473111047,-500.0,0.00015616,2]
[398262325,1765473111058,-959.95,0.00015616,2]
[398262326,1765473111069,-500.0,0.00015616,2]
[398262327,1765473111079,-500.0,0.00015616,2]
[398262328,1765473111089,-500.0,0.00015616,2]
[398262329,1765473111098,-1538.57,0.00015616,2]
[398262330,1765473111108,-10671.61,0.00015616,2]
[398262331,1765473111117,-500.0,0.00015616,2]
[398262332,1765473111126,-873.52,0.00015616,2]
[398262333,1765473111136,-3357.79,0.00015616,2]
[398262334,1765473111146,-1731.33,0.00015616,2]
[398262335,1765473111155,-53416.15,0.00015616,2]
[398262336,1765473111165,-500.0,0.00015616,2]
[398262337,1765473111175,-500.0,0.00015616,2]
[398262338,1765473111184,-910.44,0.00015616,2]
[398262339,1765473111194,-1181.33,0.00015616,2]
[398262340,1765473111203,-619.61,0.00015616,2]
[398262341,1765473111212,-500.0,0.00015616,2]
[398262342,1765473111222,-875.86,0.00015616,2]
[398262343,1765473111231,-604.4,0.00015616,2]
[398262344,1765473111241,-630.31,0.00015616,2]
[398262345,1765473111251,-8389.15,0.00015616,2]
[398262346,1765473111261,-2523.82,0.00015616,2]
[398262347,1765473111271,-500.0,0.00015616,2]
[398262348,1765473111280,-850.25,0.00015616,2]
[398262349,1765473111290,-500.0,0.00015616,2]
[398262350,1765473111300,-1104.52,0.00015616,2]
[398262351,1765473111309,-2914.61,0.00015616,2]
[398262352,1765473111319,-1148.62,0.00015616,2]
[398262353,1765473111329,-1841.97,0.00015616,2]
[398262354,1765473111339,-500.0,0.00015616,2]
[398262355,1765473111350,-500.0,0.00015616,2]
[398262356,1765473111359,-500.0,0.00015616,2]
[398262357,1765473111369,-1309.83,0.00015616,2]
[398262358,1765473111378,-500.0,0.00015616,2]
[398262359,1765473111389,-1839.66,0.00015616,2]
[398262360,1765473111399,-500.0,0.00015616,2]
[398262361,1765473111409,-950.55,0.00015616,2]
[398262362,1765473111419,-8048.24,0.00015616,2]
[398262363,1765473111430,-500.0,0.00015616,2]
[398262364,1765473111439,-1410.6,0.00015616,2]
[398262365,1765473111449,-1097.57,0.00015616,2]
[398262366,1765473111459,-500.0,0.00015616,2]
[398262367,1765473111469,-2081.19,0.00015616,2]
[398262368,1765473111480,-500.0,0.00015616,2]
[398262369,1765473111490,-1191.31,0.00015616,2]
[398262370,1765473111501,-1560.76,0.00015616,2]
[398262371,1765473111511,-239.81266228,0.00015616,2]
[398262372,1765473111520,-887.69,0.00015616,2]
[398262373,1765473111530,-987.32,0.00015616,2]
[398262374,1765473111539,-5938.55,0.00015616,2]
[398262375,1765473111549,-5007.32,0.00015616,2]
[398262376,1765473111559,-1973.08,0.00015616,2]
[398262377,1765473111569,-2136.22,0.00015616,2]
[398262378,1765473111578,-2066.71,0.00015616,2]
[398262379,1765473111588,-500.0,0.00015616,2]
[398262380,1765473111598,-2108.49,0.00015616,2]
[398262381,1765473111607,-500.0,0.00015616,2]
[398262382,1765473111617,-500.0,0.00015616,2]
[398262383,1765473111627,-990.15,0.00015616,2]
[398262384,1765473111636,-17849.44,0.00015616,2]
[398262385,1765473111646,-500.0,0.00015616,2]
[398262386,1765473111655,-3449.92,0.00015616,2]
[398262387,1765473111664,-500.0,0.00015616,2]
[398262388,1765473111674,-1798.0,0.00015616,2]
[398262389,1765473111683,-500.0,0.00015616,2]
[398262390,1765473111692,-4118.34,0.00015616,2]
[398262391,1765473111701,-830.5,0.00015616,2]
[398262392,1765473111711,-500.0,0.00015616,2]
[398262393,1765473111720,-910.39,0.00015616,2]
[398262394,1765473111729,-500.0,0.00015616,2]
[398262395,1765473111739,-15811.29,0.00015616,2]
[398262396,1765473111748,-202.37046199,0.00015616,2]
[398262397,1765473111758,-862.37,0.00015616,2]
[398262398,1765473111767,-602.31,0.00015616,2]
[398262399,1765473111777,-525.88,0.00015616,2]
[398262400,1765473111787,-500.0,0.00015616,2]
[398262401,1765473111796,-788.03,0.00015616,2]
[398262402,1765473111806,-2726.54,0.00015616,2]
[398262403,1765473111815,-500.0,0.00015616,2]
[398262404,1765473111824,-500.0,0.00015616,2]
[398262405,1765473111835,-500.0,0.00015616,2]
[398262406,1765473111844,-1792.08,0.00015616,2]
[398262407,1765473111854,-500.0,0.00015616,2]
[398262408,1765473111864,-500.0,0.00015616,2]
[398262409,1765473111874,-500.0,0.00015616,2]
[398262410,1765473111882,-648.27,0.00015616,2]
[398262411,1765473111892,-1464.86,0.00015616,2]
[398262412,1765473111901,-500.0,0.00015616,2]
[398262413,1765473111910,-669.48,0.00015616,2]
[398262414,1765473111920,-2489.03,0.00015616,2]
[398262415,1765473111930,-576.52271138,0.00015616,2]
[398262416,1765473111939,-500.0,0.00015616,2]